fUST/lending_fUST_20250524
["ID","MTS","AMOUNT","RATE_DAILY","PERIOD"]
[362174430,1748057442893,-270.5,0.00023084,3]
[362174431,1748057442903,-430.0,0.00023084,3]
[362174432,1748057442914,-470.36,0.00023084,3]
[362174433,1748057442924,-238.2,0.00023084,3]
[362174434,1748057442934,-430.0,0.00023084,3]
[362174435,1748057442943,-430.0,0.00023084,3]
[362174436,1748057442953,-430.0,0.00023084,3]
[362174437,1748057442963,-253.728428,0.00023084,7]
[362174438,1748057442972,-253.728428,0.00023084,7]
[362174439,1748057442982,-2698.7,0.00023084,3]
[362174440,1748057442992,-500.0,0.00023084,3]
[362174441,1748057443002,-655.49,0.00023084,3]
[362174442,1748057443011,-430.0,0.00023084,3]
[362174443,1748057443022,-469.03,0.00023084,3]
[362174444,1748057443031,-430.0,0.00023084,3]
[362174445,1748057443042,-440.52,0.00023084,3]
[362174446,1748057443052,-430.0,0.00023084,3]
[362174447,1748057443062,-430.0,0.00023084,3]
[362174449,1748057443072,-430.0,0.00023084,3]
[362174450,1748057443082,-512.94,0.00023084,2]
[362174451,1748057443091,-546.23,0.00023084,3]
[362174452,1748057443101,-430.0,0.00023084,3]
[362174453,1748057443110,-430.0,0.00023084,3]
[362174454,1748057443120,-1579.71,0.00023084,3]
[362174455,1748057443130,-430.0,0.00023084,3]
[362174456,1748057443140,-430.0,0.00023085,3]
[362174457,1748057443150,-213.340195,0.00023085,2]
[362174458,1748057443161,-430.0,0.00023085,3]
[362174460,1748057443171,-430.0,0.00023085,3]
[362174462,1748057443180,-430.0,0.00023085,3]
[362174463,1748057443190,-1500.0,0.00023089,2]
[362174464,1748057443199,-207.4,0.00023107,2]
[362174465,1748057443209,-797.41520654,0.00023121,2]
[362174466,1748057443219,-5101.58,0.00023287,2]
[362174467,1748057443229,-500.54,0.00023356,3]
[362174468,1748057443238,-1988.42,0.00023356,3]
[362174469,1748057443248,-3057.83,0.00023356,3]
[362174470,1748057443257,-3369.49,0.00023356,3]
[362174471,1748057443267,-1186.63,0.00023356,3]
[362174472,1748057443276,-545.41310008,0.00023356,3]
[362174473,1748057443285,-430.0,0.00023356,3]
[362174474,1748057443295,-1648.38,0.00023356,3]
[362174475,1748057443308,-430.0,0.00023356,3]
[362174476,1748057443318,-1231.19,0.00023356,3]
[362174477,1748057443328,-448.31,0.00023356,3]
[362174478,1748057443338,-430.0,0.00023357,3]
[362174479,1748057443348,-430.0,0.00023357,3]
[362174480,1748057443358,-430.0,0.00023357,3]
[362174481,1748057443367,-227.51169044,0.00023357,3]
[362174482,1748057443377,-441.06,0.00023357,3]
[362174483,1748057443386,-430.0,0.00023357,3]
[362174484,1748057443395,-430.0,0.00023357,3]
[362174485,1748057443404,-430.0,0.00023357,3]
[362174486,1748057443415,-1459.38,0.00023357,3]
[362174487,1748057443424,-430.0,0.00023357,3]
[362174488,1748057443433,-430.0,0.00023357,3]
[362174489,1748057443442,-1285.84,0.00023357,3]
[362174490,1748057443452,-430.0,0.00023357,3]
[362174491,1748057443461,-430.0,0.00023357,3]
[362174492,1748057443470,-430.0,0.00023357,3]
[362174493,1748057443479,-430.0,0.00023357,3]
[362174494,1748057443489,-628.90276469,0.00023357,3]
[362174495,1748057443875,-355.72,0.00021977,10]
[362174496,1748057443886,-165.81723531,0.00023357,3]
[362174497,1748057443895,-430.0,0.00023358,3]
[362174498,1748057443905,-430.0,0.00023358,3]
[362174499,1748057443915,-430.0,0.00023358,3]
[362174500,1748057443925,-336.41,0.00023358,3]
[362174501,1748057443934,-500.0,0.00023358,3]
[362174502,1748057443944,-655.49,0.00023358,3]
[362174503,1748057443954,-430.0,0.00023358,3]
[362174504,1748057443964,-469.03,0.00023358,3]
[362174505,1748057443974,-430.0,0.00023358,3]
[362174506,1748057443983,-440.52,0.00023358,3]
[362174507,1748057443993,-430.0,0.00023358,3]
[362174508,1748057444002,-430.0,0.00023358,3]
[362174509,1748057444012,-293.01,0.00023358,3]
[362174510,1748057444023,-512.94,0.00023358,2]
[362174511,1748057444032,-200.420013,0.00023358,7]
[362174512,1748057444041,-546.23,0.00023358,3]
[362174513,1748057444051,-430.0,0.00023358,3]
[362174514,1748057444060,-430.0,0.00023358,3]
[362174515,1748057444070,-1579.71,0.00023358,3]
[362174516,1748057444080,-430.0,0.00023358,3]
[362174517,1748057444089,-430.0,0.00023359,3]
[362174518,1748057444099,-232.12537655,0.00023359,3]
[362174519,1748057444107,-536.4,0.00023359,3]
[362174520,1748057444117,-272.32,0.00023359,3]
[362174521,1748057444127,-253.728428,0.00023359,7]
[362174522,1748057444136,-253.728428,0.00023359,7]
[362174523,1748057444146,-372.2297841,0.00023383,9]
[362174524,1748057444155,-2000.0,0.00023498,2]
[362174525,1748057444166,-500.54,0.0002363,3]
[362174526,1748057444175,-1988.42,0.0002363,3]
[362174527,1748057444279,-3057.83,0.0002363,3]
[362174528,1748057444289,-3369.49,0.0002363,3]
[362174529,1748057444301,-1186.63,0.0002363,3]
[362174530,1748057444311,-430.0,0.0002363,3]
[362174531,1748057444321,-1648.38,0.0002363,3]
[362174532,1748057444331,-430.0,0.0002363,3]
[362174533,1748057444341,-1231.19,0.0002363,3]
[362174534,1748057444351,-448.31,0.0002363,3]
[362174535,1748057444363,-430.0,0.00023631,3]
[362174536,1748057444372,-430.0,0.00023631,3]
[362174537,1748057444383,-441.06,0.00023631,3]
[362174538,1748057444394,-430.0,0.00023631,3]
[362174539,1748057444403,-430.0,0.00023631,3]
[362174540,1748057444416,-430.0,0.00023631,3]
[362174541,1748057444427,-1459.38,0.00023631,3]
[362174542,1748057444436,-430.0,0.00023631,3]
[362174543,1748057444447,-430.0,0.00023631,3]
[362174544,1748057444458,-1285.84,0.00023631,3]
[362174545,1748057444469,-430.0,0.00023631,3]
[362174546,1748057444480,-430.0,0.00023631,3]
[362174547,1748057444489,-430.0,0.00023631,3]
[362174548,1748057444499,-430.0,0.00023631,3]
[362174549,1748057444512,-794.72,0.00023631,3]
[362174550,1748057444522,-430.0,0.00023632,3]
[362174551,1748057444534,-430.0,0.00023632,3]
[362174552,1748057444545,-430.0,0.00023632,3]
[362174553,1748057444555,-500.0,0.00023632,3]
[362174554,1748057444566,-655.49,0.00023632,3]
[362174555,1748057444577,-430.0,0.00023632,3]
[362174556,1748057444586,-469.03,0.00023632,3]
[362174557,1748057444596,-430.0,0.00023632,3]
[362174558,1748057444606,-440.52,0.00023632,3]
[362174559,1748057444618,-430.0,0.00023632,3]
[362174560,1748057444627,-430.0,0.00023632,3]
[362174561,1748057444639,-512.94,0.00023632,2]
[362174562,1748057444648,-546.23,0.00023632,3]
[362174563,1748057444658,-482.34,0.00023632,3]
[362174564,1748057444670,-430.0,0.00023632,3]
[362174565,1748057444680,-1579.71,0.00023632,3]
[362174566,1748057444689,-430.0,0.00023632,3]
[362174567,1748057444699,-430.0,0.00023633,3]
[362174568,1748057444708,-797.41520654,0.00023737,2]
[362174569,1748057444717,-372.2297841,0.00023762,9]
[362174570,1748057444726,-404.0,0.00023771,2]
[362174571,1748057444736,-962.276,0.00023771,2]
[362174572,1748057444745,-1718.5,0.00023796,3]
[362174573,1748057444754,-500.54,0.00023904,3]
[362174574,1748057444763,-1988.42,0.00023904,3]
[362174575,1748057444773,-3057.83,0.00023904,3]
[362174576,1748057444782,-3369.49,0.00023904,3]
[362174577,1748057444793,-1186.63,0.00023904,3]
[362174578,1748057444803,-419.54247508,0.00023904,3]
[362174579,1748057444812,-1648.38,0.00023904,3]
[362174580,1748057444822,-430.0,0.00023904,3]
[362174581,1748057444832,-1231.19,0.00023904,3]
[362174582,1748057444842,-448.31,0.00023904,3]
[362174583,1748057444851,-430.0,0.00023905,3]
[362174584,1748057444862,-430.0,0.00023905,3]
[362174585,1748057444873,-441.06,0.00023905,3]
[362174586,1748057444883,-430.0,0.00023905,3]
[362174587,1748057444892,-430.0,0.00023905,3]
[362174588,1748057444902,-430.0,0.00023905,3]
[362174589,1748057444913,-1459.38,0.00023905,3]
[362174590,1748057444922,-430.0,0.00023905,3]
[362174591,1748057444931,-430.0,0.00023905,3]
[362174592,1748057444940,-1285.84,0.00023905,3]
[362174593,1748057444950,-430.0,0.00023905,3]
[362174594,1748057444960,-430.0,0.00023905,3]
[362174595,1748057444970,-430.0,0.00023905,3]
[362174596,1748057444982,-430.0,0.00023905,3]
[362174597,1748057444992,-794.72,0.00023905,3]
[362174598,1748057445003,-430.0,0.00023906,3]
[362174599,1748057445012,-430.0,0.00023906,3]
[362174600,1748057445021,-430.0,0.00023906,3]
[362174601,1748057445031,-500.0,0.00023906,3]
[362174602,1748057445041,-655.49,0.00023906,3]
[362174603,1748057445051,-430.0,0.00023906,3]
[362174604,1748057445060,-469.03,0.00023906,3]
[362174605,1748057445070,-430.0,0.00023906,3]
[362174606,1748057445079,-440.52,0.00023906,3]
[362174607,1748057445089,-430.0,0.00023906,3]
[362174608,1748057445099,-430.0,0.00023906,3]
[362174609,1748057445108,-512.94,0.00023906,2]
[362174610,1748057445117,-546.23,0.00023906,3]
[362174611,1748057445127,-430.0,0.00023906,3]
[362174612,1748057445136,-1579.71,0.00023906,3]
[362174613,1748057445146,-430.0,0.00023906,3]
[362174614,1748057445156,-430.0,0.00023907,3]
[362174615,1748057445167,-253.728428,0.00023907,7]
[362174616,1748057445176,-253.728428,0.00023907,7]
[362174617,1748057445188,-935.365235,0.00023912,2]
[362174618,1748057445197,-3000.0,0.00023986,3]
[362174619,1748057445207,-1500.0,0.00024,2]
[362174620,1748057445216,-5254.56,0.00024046,2]
[362174621,1748057445226,-372.2297841,0.00024141,10]
[362174622,1748057445235,-500.54,0.00024178,3]
[362174623,1748057445245,-1988.42,0.00024178,3]
[362174624,1748057445254,-3057.83,0.00024178,3]
[362174625,1748057445263,-3369.49,0.00024178,3]
[362174626,1748057445274,-1186.63,0.00024178,3]
[362174627,1748057445284,-1648.38,0.00024178,3]
[362174628,1748057445294,-430.0,0.00024178,3]
[362174629,1748057445308,-1231.19,0.00024178,3]
[362174630,1748057445319,-448.31,0.00024178,3]
[362174631,1748057445328,-430.0,0.00024179,3]
[362174632,1748057445338,-430.0,0.00024179,3]
[362174633,1748057445348,-441.06,0.00024179,3]
[362174634,1748057445360,-430.0,0.00024179,3]
[362174635,1748057445372,-430.0,0.00024179,3]
[362174636,1748057445381,-430.0,0.00024179,3]
[362174637,1748057445391,-1459.38,0.00024179,3]
[362174638,1748057445400,-430.0,0.00024179,3]
[362174639,1748057445410,-430.0,0.00024179,3]
[362174640,1748057445422,-1285.84,0.00024179,3]
[362174641,1748057445432,-430.0,0.00024179,3]
[362174643,1748057445442,-430.0,0.00024179,3]
[362174644,1748057445452,-430.0,0.00024179,3]
[362174645,1748057445462,-794.72,0.00024179,3]
[362174646,1748057445472,-430.0,0.00024179,3]
[362174647,1748057445481,-430.0,0.0002418,3]
[362174648,1748057445490,-529.69184558,0.0002418,3]
[362174649,1748057445499,-430.0,0.0002418,3]
[362174650,1748057445509,-500.0,0.0002418,3]
[362174652,1748057445518,-655.49,0.0002418,3]
[362174653,1748057445529,-430.0,0.0002418,3]
[362174654,1748057445538,-469.03,0.0002418,3]
[362174655,1748057445548,-430.0,0.0002418,3]
[362174657,1748057445557,-440.52,0.0002418,3]
[362174658,1748057445566,-430.0,0.0002418,3]
[362174659,1748057445576,-430.0,0.0002418,3]
[362174660,1748057445585,-512.94,0.0002418,2]
[362174661,1748057445596,-546.23,0.0002418,3]
[362174662,1748057445605,-430.0,0.0002418,3]
[362174663,1748057445614,-1579.71,0.0002418,3]
[362174664,1748057445624,-430.0,0.0002418,3]
[362174665,1748057445633,-430.0,0.00024181,3]
[362174666,1748057445643,-797.41520654,0.00024353,2]
[362174667,1748057445652,-500.54,0.00024452,3]
[362174668,1748057445663,-1988.42,0.00024452,3]
[362174669,1748057445673,-3057.83,0.00024452,3]
[362174670,1748057445682,-3369.49,0.00024452,3]
[362174671,1748057445692,-1186.63,0.00024452,3]
[362174672,1748057445702,-1648.38,0.00024452,3]
[362174673,1748057445714,-187.56299075,0.00024452,3]
[362174674,1748057445724,-1231.19,0.00024452,3]
[362174675,1748057445733,-448.31,0.00024452,3]
[362174676,1748057445743,-430.0,0.00024453,3]
[362174677,1748057445753,-430.0,0.00024453,3]
[362174678,1748057445762,-441.06,0.00024453,3]
[362174679,1748057445772,-430.0,0.00024453,3]
[362174680,1748057445782,-430.0,0.00024453,3]
[362174681,1748057445792,-430.0,0.00024453,3]
[362174682,1748057445801,-1459.38,0.00024453,3]
[362174683,1748057445811,-430.0,0.00024453,3]
[362174684,1748057445820,-430.0,0.00024453,3]
[362174686,1748057445830,-1285.84,0.00024453,3]
[362174687,1748057445840,-430.0,0.00024453,3]
[362174688,1748057445850,-430.0,0.00024453,3]
[362174689,1748057445860,-430.0,0.00024453,3]
[362174691,1748057445869,-794.72,0.00024453,3]
[362174692,1748057445879,-430.0,0.00024453,3]
[362174693,1748057445888,-430.0,0.00024454,3]
[362174694,1748057445898,-430.0,0.00024454,3]
[362174695,1748057445908,-500.0,0.00024454,3]
[362174696,1748057445919,-655.49,0.00024454,3]
[362174697,1748057445930,-430.0,0.00024454,3]
[362174698,1748057445940,-469.03,0.00024454,3]
[362174699,1748057446037,-430.0,0.00024454,3]
[362174700,1748057446048,-440.52,0.00024454,3]
[362174701,1748057446059,-430.0,0.00024454,3]
[362174702,1748057446069,-430.0,0.00024454,3]
[362174703,1748057446079,-512.94,0.00024454,2]
[362174704,1748057446089,-546.23,0.00024454,3]
[362174705,1748057446099,-430.0,0.00024454,3]
[362174706,1748057446109,-1579.71,0.00024454,3]
[362174707,1748057446121,-430.0,0.00024454,3]
[362174708,1748057446131,-430.0,0.00024455,3]
[362174709,1748057446141,-253.728428,0.00024455,7]
[362174710,1748057446152,-253.728428,0.00024455,7]
[362174711,1748057446163,-215.0738,0.00024476,2]
[362174712,1748057446173,-2401.32903148,0.000245,120]
[362174713,1748057446184,-372.2297841,0.00024521,11]
[362174714,1748057446194,-157.90283057,0.00024603,2]
[362174715,1748057446204,-200.1495738,0.00024657,3]
[362174716,1748057446214,-430.0,0.00024657,3]
[362174717,1748057446223,-346.10878899,0.00024657,3]
[362174718,1748057446233,-209.30572547,0.00024658,2]
[362174719,1748057446243,-211.03469509,0.00024658,3]
[362174720,1748057446253,-500.54,0.00024726,3]
[362174721,1748057446262,-1988.42,0.00024726,3]
[362174722,1748057446272,-3057.83,0.00024726,3]
[362174723,1748057446281,-3369.49,0.00024726,3]
[362174724,1748057446291,-1186.63,0.00024726,3]
[362174725,1748057446304,-1648.38,0.00024726,3]
[362174726,1748057446314,-1231.19,0.00024726,3]
[362174727,1748057446324,-448.31,0.00024726,3]
[362174728,1748057446335,-416.00097512,0.00024727,3]
[362174729,1748057446344,-161.62976784,0.00024727,3]
[362174730,1748057446354,-441.06,0.00024727,3]
[362174731,1748057446365,-430.0,0.00024727,3]
[362174732,1748057446376,-430.0,0.00024727,3]
[362174733,1748057446386,-430.0,0.00024727,3]
[362174734,1748057446396,-1459.38,0.00024727,3]
[362174735,1748057446405,-430.0,0.00024727,3]
[362174736,1748057446416,-430.0,0.00024727,3]
[362174737,1748057446426,-1285.84,0.00024727,3]
[362174738,1748057446436,-430.0,0.00024727,3]
[362174739,1748057446446,-430.0,0.00024727,3]
[362174740,1748057446455,-430.0,0.00024727,3]
[362174741,1748057446465,-430.0,0.00024727,3]
[362174742,1748057446478,-794.72,0.00024727,3]
[362174743,1748057446487,-430.0,0.00024728,3]
[362174744,1748057446498,-430.0,0.00024728,3]
[362174745,1748057446508,-500.0,0.00024728,3]
[362174746,1748057446518,-655.49,0.00024728,3]
[362174747,1748057446529,-430.0,0.00024728,3]
[362174748,1748057446539,-469.03,0.00024728,3]
[362174749,1748057446549,-430.0,0.00024728,3]
[362174750,1748057446558,-440.52,0.00024728,3]
[362174751,1748057446568,-430.0,0.00024728,3]
[362174752,1748057446578,-430.0,0.00024728,3]
[362174753,1748057446587,-512.94,0.00024728,2]
[362174754,1748057446597,-546.23,0.00024728,3]
[362174755,1748057446607,-430.0,0.00024728,3]
[362174756,1748057446617,-1579.71,0.00024728,3]
[362174757,1748057446627,-430.0,0.00024728,3]
[362174758,1748057446637,-430.0,0.00024729,3]
[362174759,1748057446647,-500.0,0.00024773,2]
[362174760,1748057446656,-500.0,0.00024773,2]
[362174761,1748057446666,-2200.0,0.00024791,2]
[362174762,1748057446676,-18052.09,0.000248,2]
[362174763,1748057446686,-253.728428,0.000248,7]
[362174764,1748057446695,-253.728428,0.000248,7]
[362174765,1748057446704,-212485.519709,0.000248,2]
[362174766,1748057446714,-500.0,0.00024868,7]
[362174767,1748057446724,-506.44260946,0.00024873,2]
[362174768,1748057446734,-500.0,0.00024873,2]
[362174769,1748057446743,-253.728428,0.000249,7]
[362174770,1748057446752,-253.728428,0.000249,7]
[362174771,1748057446763,-2512.30764272,0.000249,2]
[362174772,1748057446772,-372.2297841,0.000249,12]
[362174773,1748057446782,-157.90283057,0.00024932,2]
[362174774,1748057446792,-2512.30764264,0.0002499,2]
[362174775,1748057446802,-147673.11556709,0.00025,30]
[362174781,1748058200849,-241.95412713,0.00013562,2]
[362174782,1748058202730,-208.71843324,0.00013562,2]
[362174783,1748058204130,-223.5143695,0.00013562,2]
[362174784,1748058205612,-239.19050477,0.00013562,2]
[362174785,1748058209936,-192.15618949,0.00013562,2]
[362174786,1748058212402,-71.91131795,0.00013562,2]
[362174787,1748058212426,-167.280632,0.00013699,2]
[362174869,1748058632098,-181.0,0.00016438,3]
[362174872,1748058632112,-1105.53362413,0.00020582,2]
[362174874,1748058632125,-5000.0,0.00021,2]
[362174876,1748058632137,-894.64583333,0.00021662,2]
[362174878,1748058632148,-634.0,0.00021914,2]
[362174880,1748058632159,-300.0,0.00021915,2]
[362174882,1748058632170,-346.60369432,0.00021916,2]
[362174883,1748058632180,-500.0,0.00021916,2]
[362174886,1748058632191,-500.0,0.00021916,2]
[362174888,1748058632202,-500.0,0.00021916,2]
[362174890,1748058632215,-500.0,0.00021916,2]
[362174892,1748058632229,-500.0,0.00021916,2]
[362174894,1748058632241,-500.0,0.00021916,2]
[362174896,1748058632254,-500.0,0.00021916,2]
[362174898,1748058632264,-500.0,0.00021916,2]
[362174901,1748058632275,-171.0342332,0.00021916,2]
[362174903,1748058632286,-500.0,0.00021916,2]
[362174904,1748058632297,-500.0,0.00021916,2]
[362174906,1748058632309,-500.0,0.00021916,2]
[362174907,1748058632320,-514.09219214,0.00021916,2]
[362174908,1748058632331,-500.0,0.00021916,2]
[362174909,1748058632343,-500.0,0.00021916,2]
[362174910,1748058632354,-500.0,0.00021916,2]
[362174911,1748058632364,-500.0,0.00021916,2]
[362174912,1748058632376,-500.0,0.00021916,2]
[362174914,1748058632387,-500.0,0.00021916,2]
[362174916,1748058632398,-500.0,0.00021916,2]
[362174918,1748058632408,-500.0,0.00021916,2]
[362174920,1748058632419,-500.0,0.00021916,2]
[362174922,1748058632430,-500.0,0.00021916,2]
[362174924,1748058632441,-500.0,0.00021916,2]
[362174927,1748058632452,-500.0,0.00021916,2]
[362174929,1748058632463,-500.0,0.00021916,2]
[362174931,1748058632474,-515.52758517,0.00021917,3]
[362174933,1748058632485,-398.01564813,0.00021917,3]
[362174935,1748058632495,-408.36276523,0.00021917,3]
[362174937,1748058632507,-430.0,0.00021917,3]
[362174940,1748058632519,-525.05694663,0.00021917,3]
[362174941,1748058632530,-430.0,0.00021917,3]
[362174942,1748058632541,-400.0,0.00021917,3]
[362174943,1748058632552,-430.0,0.00021917,3]
[362174944,1748058632564,-430.0,0.00021917,3]
[362174945,1748058632574,-430.0,0.00021917,3]
[362174946,1748058632590,-430.0,0.00021917,3]
[362174947,1748058632601,-430.0,0.00021917,3]
[362174948,1748058632612,-430.0,0.00021917,3]
[362174949,1748058632624,-430.0,0.00021917,3]
[362174950,1748058632635,-430.0,0.00021917,3]
[362174951,1748058632647,-438.48,0.00021917,3]
[362174952,1748058632658,-430.0,0.00021917,3]
[362174953,1748058632672,-512.49894053,0.00021917,3]
[362174954,1748058632684,-430.0,0.00021917,3]
[362174955,1748058632694,-430.0,0.00021917,3]
[362174956,1748058632708,-430.0,0.00021917,3]
[362174957,1748058632721,-430.0,0.00021917,3]
[362174958,1748058632735,-430.0,0.00021917,3]
[362174959,1748058632749,-430.0,0.00021917,3]
[362174960,1748058632761,-430.0,0.00021917,3]
[362174961,1748058632773,-430.0,0.00021917,3]
[362174962,1748058632784,-437.51822532,0.00021917,3]
[362174963,1748058632795,-430.0,0.00021917,3]
[362174964,1748058632809,-441.35205615,0.00021917,3]
[362174965,1748058632821,-430.0,0.00021917,3]
[362174966,1748058632835,-430.0,0.00021917,3]
[362174967,1748058632846,-400.0,0.00021917,3]
[362174968,1748058632857,-430.0,0.00021917,3]
[362174969,1748058632868,-430.0,0.00021917,3]
[362174970,1748058632880,-400.0,0.00021917,3]
[362174971,1748058632891,-430.0,0.00021917,3]
[362174972,1748058632902,-430.0,0.00021917,3]
[362174973,1748058632915,-430.0,0.00021917,3]
[362174974,1748058632927,-430.0,0.00021917,3]
[362174975,1748058632939,-440.86184485,0.00021917,3]
[362174976,1748058632951,-430.0,0.00021917,3]
[362174977,1748058632962,-430.0,0.00021917,3]
[362174978,1748058633133,-438.00128036,0.00021917,3]
[362174979,1748058633143,-430.0,0.00021917,3]
[362174980,1748058633153,-430.0,0.00021917,3]
[362174981,1748058633162,-434.78946005,0.00021917,3]
[362174982,1748058633171,-438.16708718,0.00021917,3]
[362174983,1748058633180,-430.0,0.00021917,3]
[362174984,1748058633190,-400.0,0.00021917,3]
[362174985,1748058633199,-438.22523127,0.00021917,3]
[362174986,1748058633209,-430.0,0.00021917,3]
[362174987,1748058633218,-430.0,0.00021917,3]
[362174988,1748058633227,-443.64884451,0.00021917,3]
[362174989,1748058633237,-155.44927468,0.00021917,3]
[362174990,1748058633246,-430.0,0.00021917,3]
[362174991,1748058633256,-430.0,0.00021917,3]
[362174992,1748058633265,-430.0,0.00021917,3]
[362174993,1748058633275,-430.0,0.00021917,3]
[362174994,1748058633284,-430.0,0.00021917,3]
[362174995,1748058633294,-430.0,0.00021917,3]
[362174996,1748058633303,-430.0,0.00021917,3]
[362174997,1748058633313,-430.0,0.00021917,3]
[362174998,1748058633322,-430.0,0.00021917,3]
[362174999,1748058633331,-400.0,0.00021917,3]
[362175000,1748058633341,-430.0,0.00021917,3]
[362175001,1748058633350,-252.44226511,0.00021917,3]
[362175002,1748058633359,-430.0,0.00021917,3]
[362175003,1748058633369,-430.0,0.00021917,3]
[362175004,1748058633379,-430.0,0.00021917,3]
[362175005,1748058633388,-430.0,0.00021917,3]
[362175006,1748058633398,-430.0,0.00021917,3]
[362175007,1748058633408,-430.0,0.00021917,3]
[362175008,1748058633417,-526.40258375,0.00021917,3]
[362175009,1748058633427,-400.0,0.00021917,3]
[362175010,1748058633437,-414.77815313,0.00021917,3]
[362175011,1748058633447,-430.0,0.00021917,3]
[362175012,1748058633456,-430.0,0.00021917,3]
[362175013,1748058633465,-430.0,0.00021917,3]
[362175014,1748058633474,-430.0,0.00021917,3]
[362175015,1748058633484,-500.0,0.00021917,3]
[362175016,1748058633494,-430.0,0.00021917,3]
[362175017,1748058633503,-430.0,0.00021917,3]
[362175018,1748058633513,-430.0,0.00021917,3]
[362175019,1748058633523,-400.0,0.00021917,3]
[362175020,1748058633533,-430.0,0.00021917,3]
[362175021,1748058633543,-430.0,0.00021917,3]
[362175022,1748058633553,-430.0,0.00021917,3]
[362175023,1748058633563,-404.86149105,0.00021917,3]
[362175024,1748058633572,-430.0,0.00021917,3]
[362175025,1748058633582,-430.0,0.00021917,3]
[362175026,1748058633591,-430.0,0.00021917,3]
[362175027,1748058633601,-430.0,0.00021917,3]
[362175028,1748058633611,-431.69620489,0.00021917,3]
[362175029,1748058633621,-430.0,0.00021917,3]
[362175030,1748058633631,-430.0,0.00021917,3]
[362175031,1748058633641,-430.0,0.00021917,3]
[362175032,1748058633650,-430.0,0.00021917,3]
[362175033,1748058633663,-430.0,0.00021917,3]
[362175034,1748058633672,-430.0,0.00021917,3]
[362175035,1748058633682,-430.0,0.00021917,3]
[362175036,1748058633691,-430.0,0.00021917,3]
[362175037,1748058633702,-430.0,0.00021917,3]
[362175038,1748058633711,-430.0,0.00021917,3]
[362175039,1748058633721,-430.0,0.00021917,3]
[362175040,1748058633731,-430.0,0.00021917,3]
[362175041,1748058633741,-432.45054164,0.00021917,3]
[362175042,1748058633750,-430.0,0.00021917,3]
[362175043,1748058633760,-430.0,0.00021917,3]
[362175044,1748058633770,-349.79010808,0.00021917,3]
[362175045,1748058633780,-430.0,0.00021917,3]
[362175046,1748058633791,-430.0,0.00021917,3]
[362175047,1748058633801,-430.0,0.00021917,3]
[362175048,1748058633811,-430.0,0.00021917,3]
[362175049,1748058633820,-516.19309753,0.00021917,3]
[362175050,1748058633829,-430.0,0.00021917,3]
[362175051,1748058633839,-404.08892959,0.00021917,3]
[362175052,1748058633848,-430.0,0.00021917,3]
[362175053,1748058633857,-418.67533159,0.00021917,3]
[362175054,1748058633867,-405.77881667,0.00021917,3]
[362175055,1748058633877,-430.0,0.00021917,3]
[362175056,1748058633886,-500.0,0.00021917,3]
[362175057,1748058633896,-430.0,0.00021917,3]